fUST/lending_fUST_20251013
["ID","MTS","AMOUNT","RATE_DAILY","PERIOD"]
[391117859,1760361032269,-1000.0,0.00023277,30]
[391117860,1760361032279,-1216.35,0.00023292,2]
[391117861,1760361032288,-29535.7065703,0.00023467,2]
[391117862,1760361032297,-7127.3372109,0.00023748,2]
[391117863,1760361032310,-196.934051,0.00024359,2]
[391117864,1760361032319,-293.61728183,0.00024468,2]
[391117866,1760361032328,-160.0,0.000245,2]
[391117867,1760361032338,-525.45,0.00024657,2]
[391117868,1760361032347,-525.45,0.00024657,2]
[391117870,1760361032356,-525.45,0.00024657,2]
[391117871,1760361032365,-525.45,0.00024657,2]
[391117872,1760361032374,-155.2514613,0.00024657,2]
[391117874,1760361032386,-370.1985387,0.00024657,2]
[391117876,1760361032395,-216.98054082,0.00024657,2]
[391117878,1760361032406,-279.12312885,0.00024657,2]
[391118015,1760361038204,-29.34633033,0.00024657,2]
[391118016,1760361038214,-525.45,0.00024657,2]
[391118017,1760361038223,-126.31572112,0.00024657,2]
[391118018,1760361038234,-281.00478041,0.00024657,2]
[391118049,1760361043420,-10385.73237357,0.00024657,2]
[391118050,1760361043431,-11044.56999,0.00024657,2]
[391118062,1760361085616,378.06,0.00019685,2]
[391118063,1760361168086,373.25,0.0001966,2]
[391118356,1760361251175,368.5,0.00019675,2]
[391119291,1760361333865,363.81,0.00019657,2]
[391119292,1760361414950,359.18,0.00019697,2]
[391119299,1760361496868,354.61,0.00019664,2]
[391119321,1760361579201,350.1,0.00019678,2]
[391119347,1760361633956,-162.0,0.00021014,3]
[391119348,1760361633981,-206.48080876,0.00021014,2]
[391119353,1760361642410,368.46969122,0.00020971,2]
[391119363,1760361660823,345.64,0.00019655,2]
[391119370,1760361679731,236.755034,0.00013699,2]
[391119371,1760361680091,236.755034,0.00020187,2]
[391119425,1760361744338,341.24,0.00019672,2]
[391119554,1760361826494,336.9,0.00019678,2]
[391119596,1760361910438,332.61,0.00019774,2]
[391119697,1760361991718,328.38,0.00019772,2]
[391119758,1760362077881,324.2,0.00019664,2]
[391119776,1760362158632,320.07,0.00019672,2]
[391119814,1760362232370,-47.21083685,0.00021014,2]
[391119815,1760362232379,-640.14,0.0002146,2]
[391119817,1760362232389,-169.33619762,0.00022,10]
[391119818,1760362232399,-960.21,0.00023248,2]
[391119819,1760362232408,-162.61409203,0.00023269,2]
[391119820,1760362232417,-143.27751532,0.00023452,2]
[391119830,1760362242105,295.63,0.00019663,2]
[391119890,1760362324591,291.87,0.00019676,2]
[391119915,1760362408147,299.01,0.00019753,2]
[391119934,1760362490555,295.2,0.00020067,2]
[391119941,1760362505858,30091.01,0.00030461,120]
[391119989,1760362572905,291.45,0.00019778,2]
[391120006,1760362654517,287.74,0.000199,2]
[391120027,1760362744388,284.08,0.00020059,2]
[391120055,1760362825146,280.46,0.00020718,2]
[391120058,1760362833462,-238.4800587,0.00021178,2]
[391120061,1760362836857,-178.21029082,0.00021178,2]
[391120062,1760362836881,-394.92939341,0.00021178,2]
[391120063,1760362838801,-151.19,0.00021178,2]
[391120066,1760362841233,-378.17,0.00021178,2]
[391120070,1760362849439,811.61974293,0.00020971,2]
[391120082,1760362907618,282.99,0.00020488,2]
[391120111,1760362991417,279.39,0.00020485,2]
[391120123,1760363072929,275.83,0.00020369,2]
[391120124,1760363100908,790.0,0.0002,10]
[391120127,1760363134621,740.80524329,0.00020119,2]
[391120128,1760363143628,500.0,0.00030461,60]
[391120129,1760363143905,500.0,0.00030461,60]
[391120130,1760363144266,500.0,0.00030461,60]
[391120131,1760363144428,500.0,0.00030461,60]
[391120132,1760363144713,500.0,0.00030461,60]
[391120133,1760363145002,500.0,0.00030461,60]
[391120134,1760363145244,500.0,0.00030461,60]
[391120135,1760363145822,500.0,0.00030461,60]
[391120136,1760363146151,500.0,0.00030461,60]
[391120137,1760363146398,500.0,0.00030461,60]
[391120140,1760363146640,500.0,0.00030461,60]
[391120141,1760363146944,500.0,0.00030461,60]
[391120142,1760363147248,500.0,0.00030461,60]
[391120143,1760363147524,500.0,0.00030461,60]
[391120144,1760363147813,500.0,0.00030461,60]
[391120145,1760363148172,500.0,0.00030461,60]
[391120146,1760363148407,449.72578162,0.00030461,60]
[391120147,1760363157145,272.32,0.00020372,2]
[391120171,1760363245816,268.86,0.00020435,2]
[391120172,1760363327320,265.43,0.00020435,2]
[391120174,1760363408974,262.06,0.00020439,2]
[391120230,1760363432523,-150.0,0.00021178,2]
[391120232,1760363432532,-201.54690596,0.00021778,2]
[391120302,1760363438526,-62.06962725,0.00021778,2]
[391120303,1760363438536,-300.0,0.00022287,2]
[391120304,1760363438546,-300.0,0.00022287,2]
[391120305,1760363438556,-829.5596821,0.00022287,2]
[391120311,1760363440601,-3e-08,0.00021678,2]
[391120348,1760363443776,-1278.99565004,0.00021678,2]
[391120349,1760363443786,-370.4403179,0.00022287,2]
[391120350,1760363443796,-300.0,0.00022287,2]
[391120351,1760363443805,-418.00927675,0.00022288,2]
[391120352,1760363443814,-1672.03710702,0.00022288,2]
[391120353,1760363443824,-3758.3214073,0.00022288,2]
[391120354,1760363443833,-524.11,0.00022297,2]
[391120355,1760363443842,-14075.64629996,0.00022733,2]
[391120356,1760363443852,-300.0,0.00022733,20]
[391120357,1760363443861,-300.0,0.00022733,20]
[391120358,1760363443871,-300.0,0.00022733,20]
[391120359,1760363443880,-300.0,0.00022733,20]
[391120360,1760363443895,-300.0,0.00022733,20]
[391120361,1760363443905,-300.0,0.00022733,20]
[391120362,1760363443915,-300.0,0.00022733,20]
[391120363,1760363443925,-300.0,0.00022733,20]
[391120364,1760363443934,-300.0,0.00022733,20]
[391120365,1760363443943,-300.0,0.00022733,20]
[391120366,1760363443953,-300.0,0.00022733,20]
[391120367,1760363443962,-300.0,0.00022733,20]
[391120368,1760363443971,-300.0,0.00022733,20]
[391120369,1760363443980,-300.0,0.00022733,20]
[391120370,1760363443990,-300.0,0.00022733,20]
[391120371,1760363444001,-600.0,0.00023187,20]
[391120372,1760363444010,-53.65653568,0.00023452,2]
[391120373,1760363444019,-1200.0,0.00023459,2]
[391120374,1760363444028,-151.0,0.0002346,7]
[391120375,1760363444038,-151.0,0.0002346,7]
[391120376,1760363444047,-153.01563,0.0002346,7]
[391120377,1760363444062,-212.4371736,0.00023461,7]
[391120378,1760363444072,-151.0,0.00023461,7]
[391120379,1760363444082,-151.0,0.00023461,7]
[391120380,1760363444091,-151.0,0.00023461,7]
[391120381,1760363444104,-151.0,0.00023461,7]
[391120382,1760363444113,-151.0,0.00023461,7]
[391120383,1760363444122,-151.0,0.00023461,7]
[391120384,1760363444131,-151.0,0.00023461,7]
[391120385,1760363444145,-273.99395076,0.00023781,11]
[391120386,1760363444155,-289.167141,0.00023839,2]
[391120387,1760363444164,-482.553903,0.00023917,2]
[391120388,1760363444174,-151.0,0.00023917,7]
[391120389,1760363444183,-188.469558,0.00023917,7]
[391120390,1760363444193,-1159.0,0.00024,2]
[391120391,1760363444202,-151.0,0.0002415,7]
[391120392,1760363444211,-151.0,0.0002415,7]
[391120393,1760363444220,-151.0,0.0002415,7]
[391120394,1760363444230,-298.94672503,0.0002415,7]
[391120395,1760363444239,-151.0,0.0002415,7]
[391120396,1760363444249,-786.17,0.00024155,2]
[391120397,1760363444258,-420.0,0.00024212,2]
[391120398,1760363444268,-861.6100414,0.00024263,2]
[391120399,1760363444277,-151.0,0.00024263,7]
[391120400,1760363444286,-1175.0,0.00024325,2]
[391120401,1760363444295,-151.0,0.00024485,7]
[391120402,1760363444304,-13053.3891257,0.00024514,2]
[391120403,1760363444314,-151.0,0.00024514,7]
[391120404,1760363444323,-151.0,0.00024514,7]
[391120405,1760363444333,-151.0,0.00024514,7]
[391120406,1760363444343,-151.0,0.00024514,7]
[391120407,1760363444352,-151.0,0.00024514,7]
[391120408,1760363444361,-151.0,0.00024514,7]
[391120409,1760363444370,-151.0,0.00024514,7]
[391120410,1760363444380,-151.0,0.00024514,7]
[391120411,1760363444394,-151.0,0.00024657,7]
[391120412,1760363444403,-151.0,0.00024657,7]
[391120413,1760363444413,-151.64626286,0.00024657,7]
[391120414,1760363444422,-500.0,0.00024657,2]
[391120415,1760363444431,-500.0,0.00024657,2]
[391120416,1760363444441,-500.0,0.00024657,2]
[391120417,1760363444450,-500.0,0.00024657,2]
[391120418,1760363444460,-500.0,0.00024657,2]
[391120419,1760363444469,-500.0,0.00024657,2]
[391120420,1760363444479,-500.0,0.00024657,2]
[391120421,1760363444488,-500.0,0.00024657,2]
[391120422,1760363444497,-500.0,0.00024657,2]
[391120423,1760363444506,-500.0,0.00024657,2]
[391120424,1760363444516,-500.0,0.00024657,2]
[391120425,1760363444525,-500.0,0.00024657,2]
[391120426,1760363444534,-500.0,0.00024657,2]
[391120427,1760363444544,-500.0,0.00024657,2]
[391120428,1760363444553,-500.0,0.00024657,2]
[391120429,1760363444563,-500.0,0.00024657,2]
[391120430,1760363444572,-525.34585803,0.00024657,2]
[391120431,1760363444581,-500.0,0.00024657,2]
[391120432,1760363444590,-500.0,0.00024657,2]
[391120433,1760363444599,-500.0,0.00024657,2]
[391120434,1760363444608,-500.0,0.00024657,2]
[391120435,1760363444618,-500.0,0.00024657,2]
[391120436,1760363444627,-500.0,0.00024657,2]
[391120437,1760363444638,-500.0,0.00024657,2]
[391120438,1760363444647,-500.0,0.00024657,2]
[391120439,1760363444656,-500.0,0.00024657,2]
[391120440,1760363444665,-500.0,0.00024657,2]
[391120441,1760363444674,-217.40953799,0.00024657,2]
[391120442,1760363444683,-1269.88,0.00024657,2]
[391120443,1760363444692,-1269.88,0.00024657,2]
[391120444,1760363444701,-1269.88,0.00024657,2]
[391120445,1760363444710,-1269.88,0.00024657,2]
[391120446,1760363444719,-1269.88,0.00024657,2]
[391120447,1760363444728,-1269.88,0.00024657,2]
[391120448,1760363444738,-1269.88,0.00024657,2]
[391120449,1760363444747,-1269.88,0.00024657,2]
[391120450,1760363444756,-1269.88,0.00024657,2]
[391120451,1760363444765,-1269.88,0.00024657,2]
[391120452,1760363444774,-1269.88,0.00024657,2]
[391120453,1760363444783,-1269.88,0.00024657,2]
[391120454,1760363444792,-1269.88,0.00024657,2]
[391120455,1760363444802,-1269.88,0.00024657,2]
[391120456,1760363444811,-1269.88,0.00024657,2]
[391120457,1760363444820,-1269.88,0.00024657,2]
[391120458,1760363444829,-1269.88,0.00024657,2]
[391120459,1760363444838,-1269.88,0.00024657,2]
[391120460,1760363444847,-1269.88,0.00024657,2]
[391120461,1760363444856,-1269.88,0.00024657,2]
[391120462,1760363444865,-1269.88,0.00024657,2]
[391120463,1760363444875,-1269.88,0.00024657,2]
[391120464,1760363444888,-1269.88,0.00024657,2]
[391120465,1760363444898,-1270.00905337,0.00024657,2]
[391120466,1760363444907,-151.0,0.00024657,7]
[391120467,1760363444916,-151.0,0.00024657,7]
[391120468,1760363444925,-151.0,0.00024657,7]
[391120469,1760363444934,-151.0,0.00024657,7]
[391120470,1760363444943,-151.0,0.00024657,7]
[391120471,1760363444955,-151.0,0.00024657,7]
[391120472,1760363444965,-151.0,0.00024657,7]
[391120473,1760363444974,-500.0,0.00024657,2]
[391120474,1760363444983,-395.79620322,0.00024657,2]
[391120475,1760363444992,-151.0,0.00024657,7]
[391120476,1760363445003,-1373.24,0.0002497,10]
[391120477,1760363445012,-616.17827836,0.0002499,2]
[391120478,1760363445021,-500.0,0.00024999,2]
[391120479,1760363445030,-346.74029788,0.00024999,2]
[391120480,1760363445039,-334.45228642,0.00024999,2]
[391120481,1760363445049,-33034.39659753,0.00025,2]
[391120485,1760363446484,-6965.64340247,0.00025,2]
[391120486,1760363446493,-500.0,0.000253,2]
[391120487,1760363446503,-500.0,0.00025306,2]
[391120488,1760363446513,-494.0,0.00025454,2]
[391120489,1760363446522,-720.0,0.00025505,20]
[391120490,1760363446532,-616.17827836,0.0002599,2]
[391120491,1760363446541,-150.0,0.00026,2]
[391120492,1760363446550,-1663.77896704,0.00026,30]
[391120493,1760363446560,-1048.22,0.00026013,2]
[391120494,1760363446569,-587.0,0.00026302,2]
[391120495,1760363446579,-250.0,0.00026527,2]
[391120496,1760363446588,-250.0,0.00026527,2]
[391120497,1760363446598,-250.0,0.00026527,2]
[391120498,1760363446608,-250.0,0.00026527,2]
[391120499,1760363446618,-250.0,0.00026527,2]
[391120500,1760363446627,-250.0,0.00026527,2]
[391120501,1760363446641,-236.755034,0.00026676,2]
[391120502,1760363446651,-192.42336638,0.000269,2]
[391120504,1760363446660,-611.41,0.0002699,3]
[391120505,1760363446669,-1232.35655672,0.0002699,2]
[391120508,1760363446680,-40603.36833663,0.00027,3]
[391120510,1760363446691,-5871.76138201,0.00027,3]
[391120514,1760363491975,228.7,0.00020325,2]
[391120518,1760363577613,225.79,0.00020335,2]
[391120524,1760363659068,222.92,0.00020362,2]
[391120530,1760363739934,220.08,0.00020629,2]
[391120541,1760363822104,217.28,0.00020504,2]
[391120543,1760363871971,13214.36,0.00030458,60]
[391120546,1760363904629,214.52,0.00020508,2]
[391120550,1760363985899,211.78,0.00020514,2]
[391120553,1760364068628,209.09,0.00020391,2]
[391120554,1760364079042,-161.0,0.00021041,3]
[391120555,1760364079066,-142.55523886,0.00021041,2]
[391120561,1760364151754,206.43,0.00020531,2]
[391120563,1760364233723,203.8,0.00020564,2]
[391120565,1760364250596,3093.5892638,0.00020971,2]
[391120568,1760364315534,201.21,0.00020564,2]
[391120571,1760364397553,200.93,0.00020519,2]
[391120572,1760364479956,198.37,0.00020612,2]
[391120578,1760364562373,195.84,0.00020615,2]
[391120579,1760364570185,201.241778,0.00013699,2]
[391120580,1760364570442,201.241778,0.00020187,2]
[391120642,1760364632933,-7.44476114,0.00021041,2]
[391120644,1760364632942,-172.5,0.00021641,2]
[391120646,1760364632952,-156.70398224,0.00022141,2]
[391120648,1760364632961,-179.04690596,0.00022241,2]
[391120650,1760364632970,-385.30820771,0.00022489,2]
[391120652,1760364632982,-6.38179229,0.00022489,2]
[391120654,1760364632991,-196.934051,0.0002305,2]
[391120656,1760364633001,-342.967284,0.0002309,2]
[391120658,1760364633010,-587.53,0.00024364,2]
[391120660,1760364633021,-156.70398223,0.0002469,2]
[391120662,1760364633030,-1293.66854288,0.0002479,2]
[391120664,1760364633040,-682.30114333,0.0002479,2]
[391120667,1760364633049,-1071.65708766,0.00024829,10]
[391120669,1760364633061,-693.31997,0.00024829,10]
[391120671,1760364633072,-43.39294234,0.00024829,10]
[391120672,1760364633082,-899.45712871,0.00024829,10]
[391120698,1760364638602,-220.0,0.00024836,2]
[391120701,1760364638615,-61.79161708,0.00024836,2]
[391120706,1760364638661,-238.20838292,0.00024836,2]
[391120708,1760364638671,-300.0,0.00024836,2]
[391120710,1760364638681,-50000.0,0.00024837,2]
[391120712,1760364638690,-1100.0,0.00024837,2]
[391120714,1760364638699,-500.0,0.00024838,2]
[391120716,1760364638709,-304.2109064,0.00024838,2]
[391120718,1760364638718,-500.0,0.00024838,2]
[391120720,1760364638728,-500.0,0.00024838,2]
[391120722,1760364638737,-500.0,0.00024838,2]
[391120724,1760364638746,-500.0,0.00024838,2]
[391120726,1760364638756,-500.0,0.00024838,2]
[391120728,1760364638765,-500.0,0.00024838,2]
[391120730,1760364638775,-500.0,0.00024838,2]
[391120732,1760364638784,-500.0,0.00024838,2]
[391120734,1760364638794,-500.0,0.00024838,2]
[391120736,1760364638810,-500.0,0.00024838,2]
[391120738,1760364638828,-395.87100908,0.00024838,2]
[391120740,1760364638839,-500.0,0.00024838,2]
[391120742,1760364638849,-500.0,0.00024838,2]
[391120744,1760364638859,-500.0,0.00024838,2]
[391120746,1760364638870,-206.85954629,0.00024838,2]
[391120748,1760364638879,-500.0,0.00024838,2]
[391120750,1760364638889,-500.0,0.00024838,2]
[391120752,1760364638899,-500.0,0.00024838,2]
[391120754,1760364638908,-500.0,0.00024838,2]
[391120756,1760364638918,-500.0,0.00024838,2]
[391120758,1760364638927,-500.0,0.00024838,2]
[391120760,1760364638937,-500.0,0.00024838,2]
[391120762,1760364638947,-500.0,0.00024838,2]
[391120764,1760364638957,-500.0,0.00024838,2]
[391120766,1760364638966,-500.0,0.00024838,2]
[391120767,1760364638975,-500.0,0.00024838,2]
[391120769,1760364638985,-500.0,0.00024838,2]
[391120771,1760364638994,-500.0,0.00024838,2]
[391120772,1760364639003,-500.0,0.00024838,2]
[391120774,1760364639012,-500.0,0.00024838,2]
[391120776,1760364639022,-500.0,0.00024838,2]
[391120778,1760364639031,-500.0,0.00024838,2]
[391120780,1760364639040,-500.0,0.00024838,2]
[391120782,1760364639049,-500.0,0.00024838,2]
[391120784,1760364639058,-500.0,0.00024838,2]
[391120786,1760364639067,-172.86980764,0.00024838,2]
[391120788,1760364639076,-500.0,0.00024838,2]
[391120790,1760364639085,-240.58999322,0.00024838,2]
[391120792,1760364639095,-500.0,0.00024838,2]
[391120794,1760364639103,-500.0,0.00024838,2]
[391120796,1760364639115,-500.0,0.00024838,2]
[391120798,1760364639123,-500.0,0.00024838,2]
[391120799,1760364639139,-500.0,0.00024838,2]
[391120801,1760364639148,-500.0,0.00024838,2]
[391120803,1760364639158,-500.0,0.00024838,2]
[391120805,1760364639167,-500.0,0.00024838,2]
[391120807,1760364639177,-500.0,0.00024838,2]
[391120809,1760364639186,-500.0,0.00024838,2]
[391120811,1760364639196,-500.0,0.00024838,2]
[391120813,1760364639206,-500.0,0.00024838,2]
[391120815,1760364639215,-500.0,0.00024838,2]
[391120817,1760364639225,-500.0,0.00024838,2]
[391120819,1760364639234,-500.0,0.00024838,2]
[391120821,1760364639244,-350.0,0.00024838,2]
[391120823,1760364639253,-500.0,0.00024838,2]
[391120825,1760364639262,-500.0,0.00024838,2]
[391120827,1760364639272,-500.0,0.00024838,2]
[391120829,1760364639282,-500.0,0.00024838,2]
[391120831,1760364639291,-500.0,0.00024838,2]
[391120833,1760364639301,-256.97292998,0.00024838,2]
[391120835,1760364639311,-500.0,0.00024838,2]
[391120837,1760364639320,-500.0,0.00024838,2]
[391120839,1760364639329,-500.0,0.00024838,2]
[391120841,1760364639340,-500.0,0.00024838,2]
[391120843,1760364639349,-500.0,0.00024838,2]
[391120845,1760364639359,-500.0,0.00024838,2]
[391120847,1760364639372,-500.0,0.00024838,2]
[391120848,1760364639383,-500.0,0.00024838,2]
[391120850,1760364639393,-500.0,0.00024838,2]
[391120852,1760364639403,-193.86,0.00024839,3]
[391120855,1760364639412,-581.63,0.00024839,3]
[391120857,1760364639423,-152.939466,0.00024839,7]
[391120858,1760364639433,-151.0,0.00024839,7]
[391120860,1760364639443,-151.0,0.00024839,7]
[391120862,1760364639454,-151.0,0.00024839,7]
[391120864,1760364639464,-151.0,0.00024839,7]
[391120867,1760364639477,-152.586612,0.00024839,7]
[391120868,1760364639487,-1255.81,0.00024839,10]
[391120869,1760364639496,-5942.22873424,0.00024839,2]
[391120870,1760364639506,-500.0,0.00024848,2]
[391120871,1760364639515,-584.1166005,0.00024848,2]
[391120872,1760364639524,-242.71820852,0.00024848,2]
[391120873,1760364639533,-151.0,0.00024849,7]
[391120874,1760364639542,-152.860067,0.00024849,7]
[391120875,1760364639551,-151.0,0.00024849,7]
[391120876,1760364639560,-151.0,0.00024849,7]
[391120877,1760364639570,-370000.0,0.00024849,2]
[391120878,1760364639579,-742.77859178,0.0002489,2]
[391120879,1760364639588,-17467.98,0.000249,7]
[391120880,1760364639597,-151.0,0.000249,7]
[391120881,1760364639606,-260062.488639,0.000249,2]
[391120882,1760364639620,-151.0,0.000249,7]
[391120883,1760364639629,-224.619605,0.000249,7]
[391120884,1760364639638,-300.0,0.00025002,20]
[391120885,1760364639647,-300.0,0.00025002,20]
[391120886,1760364639656,-300.0,0.00025002,20]
[391120887,1760364639665,-300.0,0.00025002,20]
[391120888,1760364639675,-300.0,0.00025002,20]
[391120889,1760364639684,-300.0,0.00025002,20]
[391120890,1760364639693,-300.0,0.00025002,20]
[391120891,1760364639702,-300.0,0.00025002,20]
[391120892,1760364639711,-300.0,0.00025002,20]
[391120893,1760364639720,-300.0,0.00025002,20]
[391120894,1760364639729,-300.0,0.00025002,20]
[391120895,1760364639738,-300.0,0.00025002,20]
[391120896,1760364639747,-300.0,0.00025002,20]
[391120897,1760364639756,-300.0,0.00025002,20]
[391120898,1760364639765,-300.0,0.00025002,20]
[391120899,1760364639774,-600.0,0.00025002,20]
[391120900,1760364639783,-151.0,0.00025002,20]
[391120901,1760364639793,-200.53797051,0.00025047,2]
[391120902,1760364639802,-151.0,0.00025057,20]
[391120903,1760364639811,-213.04992668,0.00025112,20]
[391120904,1760364639819,-3393.5403571,0.00025858,2]
[391120905,1760364639828,-18528.6668962,0.00025858,2]
[391120906,1760364639837,-552.9877452,0.00025858,2]
[391120907,1760364639846,-151.0,0.00025858,7]
[391120908,1760364639855,-151.0,0.00025858,7]
[391120909,1760364639868,-250.0,0.00025878,2]
[391120910,1760364639877,-250.0,0.00025878,2]
[391120911,1760364639887,-250.0,0.00025878,2]
[391120912,1760364639896,-250.0,0.00025878,2]
[391120913,1760364639905,-250.0,0.00025878,2]
[391120914,1760364639914,-250.0,0.00025878,2]
[391120915,1760364639923,-999.0,0.00026027,2]
[391120916,1760364639932,-11370.27105054,0.000261,2]
[391120917,1760364639941,-1293.66854288,0.00026111,2]
[391120918,1760364639950,-361.91542725,0.0002618,2]
[391120919,1760364639959,-387.72,0.00026209,3]
[391120920,1760364639968,-976.43201705,0.00026408,5]
[391120921,1760364639977,-201.241778,0.00026676,2]
[391120922,1760364639987,-260.0,0.00026833,2]
[391120923,1760364639995,-807.25377439,0.00026882,2]
[391120924,1760364640004,-420.0,0.0002691,2]
[391120925,1760364640013,-742.77859178,0.0002699,2]
[391120926,1760364640024,-53524.87028136,0.00027,3]
[391120927,1760364640034,-151.0,0.00027,7]
[391120928,1760364640043,-742.77859178,0.0002739,2]
[391120929,1760364640052,-151.0,0.00027397,30]
[391120930,1760364640061,-151.0,0.00027397,30]
[391120931,1760364640070,-151.0,0.00027397,30]
[391120932,1760364640079,-2776.42,0.000274,2]
[391120933,1760364640087,-1293.66854288,0.00027432,2]
[391120934,1760364640096,-720.0,0.00027502,30]
[391120935,1760364640105,-682.30114332,0.00027536,2]
[391120936,1760364640116,-500.0,0.00028512,7]
[391120938,1760364640125,-17467.98,0.000286,7]
[391120940,1760364640135,-552.9877452,0.000287,2]
[391120942,1760364640144,-1293.66854288,0.00028752,2]
[391120944,1760364640153,-2089.07574424,0.0002895,2]
[391120946,1760364640162,-168.0,0.00028981,2]
[391120948,1760364640171,-4710.37447539,0.00029,120]
[391120950,1760364640181,-587.0,0.00029158,2]
[391120951,1760364640190,-151.0,0.000296,20]
[391120952,1760364640199,-2228.33577534,0.0002999,2]
[391120953,1760364640208,-200.0,0.0003,120]
[391120954,1760364640217,-190.29800946,0.0003,60]
[391120956,1760364640226,-162.163,0.0003,2]
[391120958,1760364640236,-128019.22,0.0003,10]
[391120960,1760364640244,-206.69132131,0.0003,5]
[391120962,1760364640254,-153.0,0.00030073,2]
[391120964,1760364640264,-153.0,0.00030073,2]
[391120967,1760364640273,-1293.66854288,0.00030073,2]
[391120969,1760364640283,-153.0,0.00030077,2]
[391120972,1760364640293,-153.0,0.00030112,2]
[391120974,1760364640303,-153.0,0.00030112,2]
[391120976,1760364640312,-153.0,0.00030116,2]
[391120978,1760364640322,-150.0,0.00030136,120]
[391120980,1760364640331,-153.0,0.00030148,2]
[391120982,1760364640341,-157.977146,0.0003015,20]
[391120984,1760364640353,-4456.67155068,0.00030155,2]
[391120987,1760364640364,-153.0,0.00030155,2]
[391120989,1760364640376,-157.977146,0.00030156,2]
[391120991,1760364640386,-157.977146,0.00030156,30]
[391120993,1760364640395,-500.0,0.00030156,7]
[391120994,1760364640404,-200.51788869,0.00030157,10]
[391120995,1760364640413,-999.0,0.00030173,4]
[391120996,1760364640422,-105234.25887081,0.00030176,2]
[391120997,1760364640436,-316423.02443833,0.00030176,2]
[391120998,1760364640447,-3473.44618,0.00030176,2]
[391120999,1760364640459,-1050.0,0.00030176,2]
[391121000,1760364640469,-28764.22752254,0.00030176,2]
[391121001,1760364640480,-1401.21430455,0.00030176,2]
[391121002,1760364640589,-359.99275684,0.00030176,2]
[391121003,1760364640601,-584.4992,0.00030176,2]
[391121004,1760364640648,-94033.46688693,0.00030176,2]
[391121005,1760364640659,-23929.24747446,0.00030176,2]
[391121007,1760364642436,180.89,0.00020509,2]
[391121030,1760364643881,-361.78,0.00022373,2]
[391121031,1760364643892,-542.66,0.00024238,2]
[391121033,1760364643902,-723.55,0.00026102,2]
[391121035,1760364643912,-1696.09247285,0.00030176,2]
[391121036,1760364643923,-2361.57660984,0.00030176,2]
[391121037,1760364643935,-2083.26978435,0.00030176,2]
[391121038,1760364644061,-17593.34447594,0.00030176,2]
[391121055,1760364646172,-904.44,0.00027966,2]
[391121056,1760364646183,-377.179605,0.00029831,2]
[391121060,1760364722101,150.0,0.00020641,2]
[391121181,1760364887217,150.0,0.00020517,2]
[391121184,1760364969717,150.0,0.00020472,2]
[391121207,1760365051798,150.0,0.00020435,2]
[391121208,1760365098548,220.0,0.00027,120]
[391121209,1760365133246,150.0,0.00020486,2]
[391121227,1760365213898,150.0,0.00020507,2]
[391121229,1760365306335,150.0,0.00020434,2]
[391121231,1760365386864,150.0,0.00020437,2]